bitfinex/quotes_ETHUSD_20251218
["timestamp","ask_amount","ask_price","bid_price","bid_amount"]
[1766094115292,1.03838023,2822.1,2821.3,2.4728]
[1766094115493,0.0392,2821.6,2820.8,10.1557]
[1766094115696,1.0411,2821.6,2820.9,1.01557]
[1766094116521,4.58519652,2821.6,2820.9,1.01557]
[1766094116821,1.0012,2821.5,2820.6,11.19408023]
[1766094117022,7.12739304,2821.6,2820.6,0.574]
[1766094117023,0.0392,2821.6,2820.6,0.574]
[1766094117323,4.11806056,2821.7,2820.6,0.574]
[1766094117324,4.11806056,2821.7,2820.7,10.1557]
[1766094117829,4.11806056,2821.7,2820.6,0.574]
[1766094118126,4.11806056,2821.7,2820.7,10.1557]
[1766094118323,4.11806056,2821.7,2820.8,11.22867]
[1766094119135,4.11806056,2821.7,2820.4,0.002]
[1766094119136,1.0386,2821.4,2820.4,10.1577]
[1766094119296,1.0386,2821.4,2820.4,0.002]
[1766094119496,1.0386,2821.4,2820.5,10.1557]
[1766094119725,1.0386,2821.4,2820.5,0.002]
[1766094120021,1.0386,2821.4,2820.6,10.1557]
[1766094120348,4.58236531,2821.3,2820.5,0.002]
[1766094120501,1.90797875,2821.3,2820.5,0.002]
[1766094120702,4.11828304,2821.5,2820.6,10.1557]
[1766094121019,4.11828304,2821.5,2820.7,7.6829]
[1766094121333,1.0374,2821.4,2820.6,2.4728]
[1766094121993,0.9971,2821.1,2820.5,0.002]
[1766094122197,1.0363,2821.0,2820.5,0.002]
[1766094122598,4.008656,2821.5,2820.5,0.002]
[1766094122792,1.32927845,2821.4,2820.6,10.2338]
[1766094123034,0.574,2821.3,2820.6,10.2338]
[1766094123548,0.0392,2821.2,2820.5,0.002]
[1766094123696,0.9966,2821.1,2820.5,0.002]
[1766094124711,0.9915,2821.0,2820.3,0.002]
[1766094124895,0.9915,2820.8,2819.8,7.7192]
[1766094125227,0.574,2820.9,2820.1,10.69818023]
[1766094125926,1.6022,2820.9,2820.1,10.69818023]
[1766094126129,1.6022,2820.9,2819.9,0.46438023]
[1766094126130,1.0282,2820.7,2819.9,0.46438023]
[1766094126429,1.0282,2820.7,2819.9,1.59159825]
[1766094126633,0.574,2820.9,2819.9,1.12721802]
[1766094126833,0.574,2820.9,2819.9,0.46438023]
[1766094127033,0.574,2820.9,2820.1,10.2338]
[1766094128145,0.75527845,2821.4,2820.2,0.574]
[1766094128341,0.991,2821.7,2820.5,0.46438023]
[1766094128508,0.001,2821.4,2820.4,7.7192]
[1766094128714,0.001,2821.4,2820.7,10.2338]
[1766094129445,0.0372,2821.2,2820.4,0.46438023]
[1766094129629,0.9896,2821.2,2820.4,0.46438023]
[1766094129831,0.9891,2821.1,2820.3,0.574]
[1766094130033,1.0263,2821.0,2820.3,0.574]
[1766094130214,1.6013,2821.4,2820.4,10.2338]
[1766094130416,4.57077198,2821.3,2820.4,10.2338]
[1766094130838,1.0263,2821.3,2820.4,10.2338]
[1766094131015,1.6003,2821.3,2820.4,10.2338]
[1766094131638,1.0258,2821.2,2820.4,10.2338]
[1766094131845,1.0258,2821.2,2820.4,11.4273018]
[1766094132348,1.0258,2821.2,2820.3,0.574]
[1766094132349,0.0372,2821.1,2820.0,0.002]
[1766094132550,1.5622,2821.0,2820.1,10.2338]
[1766094132797,1.5622,2821.0,2820.2,7.0154]
[1766094132951,0.574,2821.0,2820.0,0.002]
[1766094133160,0.574,2821.0,2820.3,7.0154]
[1766094133346,0.41187248,2820.9,2820.3,9.6057]
[1766094133815,4.56902508,2821.2,2820.2,9.6057]
[1766094133816,1.0244,2821.2,2820.2,9.6057]
[1766094134015,4.56903077,2821.2,2820.2,9.6057]
[1766094134615,4.56903077,2821.2,2820.1,0.574]
[1766094134815,4.56903077,2821.2,2820.2,9.6057]
[1766094135053,0.81135596,2821.1,2820.2,9.6057]
[1766094135225,0.9863,2821.0,2820.2,9.6057]
[1766094135568,0.9863,2821.0,2820.0,0.002]
[1766094135569,1.0235,2820.9,2820.0,0.002]
[1766094135916,1.0235,2820.9,2820.1,9.6057]
[1766094136629,1.2643856,2820.9,2820.1,9.6057]
[1766094137041,4.80936324,2820.9,2820.1,9.6057]
[1766094137644,1.2643856,2820.9,2820.1,9.6057]
[1766094138162,0.001,2821.0,2820.2,1.0738387]
[1766094138367,0.001,2821.4,2820.7,0.46438023]
[1766094138529,0.001,2821.4,2821.0,9.6057]
[1766094139335,0.001,2821.4,2820.8,1.03838023]
[1766094139546,0.001,2821.4,2821.0,9.6057]
[1766094139748,0.001,2821.4,2821.1,0.96057]
[1766094142430,0.001,2821.4,2821.2,9.6057]
[1766094142626,0.001,2821.7,2821.1,0.96057]
[1766094142851,0.001,2821.7,2821.2,9.6057]
[1766094143054,0.001,2821.7,2821.2,10.1797]
[1766094144159,0.001,2821.7,2821.3,9.6057]
[1766094144363,0.001,2822.2,2821.2,0.574]
[1766094144533,0.001,2822.2,2821.3,9.6057]
[1766094144733,0.001,2822.2,2821.4,10.62367]
[1766094145358,1.0233,2822.2,2821.4,10.62367]
[1766094145549,0.001,2821.7,2821.2,0.574]
[1766094145858,0.001,2821.7,2821.2,7.5826663]
[1766094146167,0.001,2821.7,2821.3,2.5903]
[1766094146659,0.001,2821.7,2821.2,0.5672663]
[1766094146859,0.001,2822.2,2821.2,0.5672663]
[1766094147060,0.55752913,2822.2,2821.2,0.5672663]
[1766094147562,0.55752913,2822.2,2821.3,9.6057]
[1766094147959,0.55752913,2822.2,2821.2,0.5672663]
[1766094147960,1.57962913,2822.2,2821.2,0.5672663]
[1766094148150,1.57962913,2822.2,2821.3,9.6057]
[1766094148355,5.12296786,2822.2,2821.3,9.6057]
[1766094148550,0.56969679,2822.1,2821.3,9.6057]
[1766094148933,1.0231,2822.2,2821.3,9.6057]
[1766094149136,1.0231,2822.2,2821.4,9.6057]
[1766094149562,1.0231,2822.2,2821.2,0.5672663]
[1766094149563,0.001,2822.2,2821.2,0.5672663]
[1766094149766,0.001,2822.2,2821.4,0.46438023]
[1766094149943,0.001,2822.2,2821.6,9.6057]
[1766094150271,0.001,2822.6,2821.7,7.0154]
[1766094150464,0.001,2822.6,2822.0,9.6057]
[1766094150837,0.001,2822.6,2822.0,7.0154]
[1766094151037,0.001,2822.7,2822.4,7.0154]
[1766094151239,0.001,2822.7,2821.7,0.46438023]
[1766094151240,0.001,2822.9,2822.5,2.5903]
[1766094151462,0.001,2822.9,2822.4,9.6057]
[1766094151672,0.001,2822.9,2822.4,0.86153712]
[1766094151850,0.001,2822.9,2822.3,0.574]
[1766094152057,1.0234,2822.8,2821.8,0.574]
[1766094152476,0.9823,2822.7,2821.3,9.6057]
[1766094152775,0.9819,2822.6,2821.6,0.46438023]
[1766094153647,0.9819,2822.6,2821.4,0.574]
[1766094153849,0.9819,2822.6,2821.0,12.48129648]
[1766094153850,0.9815,2822.4,2821.0,0.002]
[1766094154075,0.4075,2822.2,2821.0,0.002]
[1766094154378,0.979504,2822.3,2821.0,0.002]
[1766094154379,0.4075,2821.8,2821.0,0.002]
[1766094154577,0.4486,2821.5,2821.0,0.002]
[1766094155253,0.90526193,2821.5,2821.0,0.002]
[1766094155846,0.45666193,2821.5,2821.0,0.002]
[1766094156046,0.574,2821.7,2819.9,3.54813904]
[1766094156047,0.0392,2821.3,2819.9,3.54813904]
[1766094156377,0.0392,2821.3,2819.9,1.04038023]
[1766094156378,0.574,2821.2,2819.9,1.04038023]
[1766094156551,0.574,2821.2,2820.2,9.6057]
[1766094156879,0.9821,2821.2,2820.0,0.407504]
[1766094157170,1.47788168,2821.2,2820.1,9.6057]
[1766094157375,1.0213,2821.2,2820.1,0.46438023]
[1766094157572,1.0215,2821.2,2820.1,2.5903]
[1766094157785,1.0215,2821.2,2820.0,0.002]
[1766094157950,1.0215,2821.2,2820.2,10.07008023]
[1766094158150,1.0215,2821.2,2820.2,0.46438023]
[1766094158151,4.5661835,2821.2,2820.2,0.46438023]
[1766094158347,0.49581835,2821.1,2820.2,0.46438023]
[1766094158661,0.90441835,2821.1,2820.2,0.46438023]
[1766094159476,0.90441835,2821.1,2820.2,10.07008023]
[1766094160750,0.4486,2821.0,2820.1,0.46438023]
[1766094160950,3.99349675,2821.0,2820.1,0.46438023]
[1766094161149,0.79948317,2820.9,2820.2,0.46438023]
[1766094161348,0.4486,2821.0,2820.2,0.46438023]
[1766094161980,3.9934472,2821.0,2820.2,0.46438023]
[1766094162756,0.4486,2821.0,2820.0,0.002]
[1766094162973,0.4486,2821.0,2820.3,0.46438023]
[1766094163285,0.445001,2820.9,2820.3,0.46438023]
[1766094164679,0.573,2820.8,2820.3,0.46438023]
[1766094165989,0.573,2820.8,2820.2,9.6952]
[1766094165990,0.573,2820.8,2820.2,0.46438023]
[1766094166173,0.573,2820.8,2820.0,0.002]
[1766094166959,0.573,2820.8,2820.2,0.46438023]
[1766094167196,0.573,2820.8,2820.2,10.15958023]
[1766094167364,0.573,2820.8,2820.2,11.17573825]
[1766094167561,0.573,2820.8,2820.2,1.48053825]
[1766094167757,0.573,2820.8,2820.0,0.46638023]
[1766094167758,0.6122,2820.8,2820.0,0.46638023]
[1766094167962,0.573,2820.8,2820.1,0.46438023]
[1766094168202,0.573,2820.8,2820.1,9.6952]
[1766094169088,0.4299,2820.7,2820.0,0.002]
[1766094169258,0.88469369,2820.7,2820.0,0.002]
[1766094169861,0.4299,2820.7,2820.1,0.46438023]
[1766094171292,0.3809,2820.6,2820.0,0.002]
[1766094171479,0.3809,2820.4,2820.0,0.002]
[1766094171689,0.3809,2820.2,2819.2,9.6952]
[1766094171996,0.3809,2820.2,2819.0,0.573]
[1766094172195,0.4114,2820.1,2819.3,0.46438023]
[1766094172599,0.4114,2820.1,2817.8,0.08931283]
[1766094172600,0.17626736,2820.1,2817.8,0.08931283]
[1766094172924,0.17626736,2820.1,2817.4,2.45916979]
[1766094172925,0.0352,2819.5,2818.1,7.2365]
[1766094173103,0.80452418,2820.2,2818.7,7.2365]
[1766094173104,0.573,2819.4,2818.7,7.2365]
[1766094173266,0.573,2819.4,2818.2,9.65810667]
[1766094173467,0.573,2819.5,2818.3,4.12112805]
[1766094173699,0.573,2819.5,2818.2,9.65810667]
[1766094173700,0.0352,2819.5,2818.4,7.2365]
[1766094173895,0.573,2819.4,2818.7,9.6952]
[1766094174518,0.573,2819.4,2818.6,0.46438023]
[1766094174673,0.0352,2819.3,2818.4,9.6952]
[1766094175349,0.0352,2819.3,2817.9,7.2365]
[1766094175617,0.0352,2819.1,2818.1,9.6952]
[1766094175816,0.39343056,2819.0,2818.1,9.6952]
[1766094176109,0.573,2818.9,2818.2,10.15958023]
[1766094176281,0.573,2818.9,2818.2,2.4587]
[1766094178000,0.573,2818.9,2818.3,0.46438023]
[1766094178207,0.573,2818.9,2817.8,0.573]
[1766094178377,0.0332,2818.8,2817.9,9.6952]
[1766094178712,7.6681919,2818.9,2817.7,9.6952]
[1766094178713,0.0332,2818.6,2817.7,9.6952]
[1766094179002,4.12059595,2818.9,2817.7,0.46438023]
[1766094179310,0.0332,2818.8,2818.0,9.6952]
[1766094179608,0.0332,2819.4,2817.9,0.46438023]
[1766094179907,0.0332,2819.2,2818.3,9.6952]
[1766094180204,0.0332,2820.1,2818.8,2.4587]
[1766094180378,0.0332,2819.9,2818.9,9.6952]
[1766094180904,0.573,2819.8,2818.8,9.6952]
[1766094181116,0.74236956,2820.1,2818.9,0.46438023]
[1766094181278,0.573,2820.0,2819.0,9.6952]
[1766094181631,0.573,2820.0,2819.0,2.5082]
[1766094181774,0.48282153,2819.9,2819.2,7.3698]
[1766094181977,0.70916956,2820.1,2819.4,9.878]
[1766094182283,3.54563101,2820.4,2819.4,2.5082]
[1766094182608,0.6062,2820.6,2819.2,7.83418023]
[1766094182806,0.46438023,2820.5,2819.6,7.3698]
[1766094183016,0.6062,2820.6,2819.6,9.878]
[1766094183185,0.46438023,2820.5,2819.7,9.878]
[1766094183502,4.15156443,2820.6,2819.8,9.878]
[1766094183503,0.573,2820.4,2819.8,9.878]
[1766094183700,0.0332,2820.9,2819.7,0.86593547]
[1766094183901,0.0332,2820.9,2820.0,7.3698]
[1766094183902,0.573,2820.8,2820.0,7.3698]
[1766094184089,0.0332,2820.9,2820.0,9.878]
[1766094184291,0.001,2820.7,2819.8,9.878]
[1766094184679,0.001,2820.7,2819.7,0.573]
[1766094185108,0.001,2820.7,2819.8,9.878]
[1766094185284,0.001,2820.7,2820.0,9.878]
[1766094185506,0.574,2820.7,2820.0,9.878]
[1766094185932,0.0332,2820.6,2819.7,0.573]
[1766094186102,0.0332,2820.6,2819.8,0.46438023]
[1766094186305,0.41524488,2820.5,2819.7,0.573]
[1766094186504,0.41524488,2820.5,2819.8,9.878]
[1766094186906,0.0332,2820.4,2819.1,9.878]
[1766094187146,0.0332,2820.4,2819.0,0.30812]
[1766094187312,0.0332,2820.2,2818.9,9.878]
[1766094187510,0.6062,2820.1,2819.0,9.878]
[1766094187823,0.0332,2820.0,2819.0,9.878]
[1766094188028,3.57932342,2820.0,2819.0,9.878]
[1766094188410,0.0332,2819.9,2819.0,9.878]
[1766094188608,0.0332,2819.9,2818.8,0.002]
[1766094188838,0.0332,2819.7,2818.8,0.002]
[1766094189016,0.6062,2819.6,2818.8,0.002]
[1766094189205,0.573,2819.6,2818.8,0.002]
[1766094189409,0.0332,2819.5,2818.8,0.002]
[1766094190108,0.573,2819.6,2818.8,9.88]
[1766094190536,4.534879,2819.6,2818.8,9.88]
[1766094190724,8.114683,2819.6,2818.8,0.002]
[1766094190905,0.0332,2819.5,2818.8,0.002]
[1766094191445,0.0332,2819.5,2818.3,0.46438023]
[1766094191648,0.0332,2819.3,2818.3,0.46438023]
[1766094191941,0.0332,2819.3,2818.1,9.878]
[1766094192125,3.580285,2819.3,2818.0,0.93988369]
[1766094192438,0.0332,2819.3,2818.8,0.002]
[1766094193032,3.54601367,2820.1,2818.8,0.002]
[1766094193033,0.0332,2820.4,2819.0,2.85598023]
[1766094193232,0.0332,2820.4,2818.8,0.46638023]
[1766094193233,0.573,2820.0,2819.4,9.5182]
[1766094193537,0.0332,2820.5,2819.6,9.5182]
[1766094193728,0.573,2820.4,2819.6,9.5182]
[1766094193934,0.41516779,2820.3,2819.6,9.5182]
[1766094194357,3.96098222,2820.3,2819.6,9.5182]
[1766094195166,3.54581443,2820.3,2819.2,0.573]
[1766094195360,3.54581443,2820.3,2819.4,9.98258023]
[1766094195954,7.09162886,2820.3,2819.4,9.98258023]
[1766094196154,0.0332,2820.2,2819.1,9.5182]
[1766094196472,0.0332,2820.2,2818.8,9.5202]
[1766094196632,0.0332,2820.0,2818.9,1.41640023]
[1766094196833,0.6062,2819.9,2818.9,1.41640023]
[1766094197029,0.0332,2819.8,2818.9,0.95202]
[1766094198458,0.0332,2819.6,2818.8,0.002]
[1766094200467,3.57992814,2819.5,2818.8,0.002]
[1766094200677,0.573,2819.4,2818.8,0.002]
[1766094200964,0.6062,2819.4,2818.8,0.002]
[1766094202349,3.58017974,2819.3,2818.5,9.5202]
[1766094202569,0.0332,2819.1,2818.5,0.002]
[1766094202782,0.573,2819.0,2818.5,0.002]
[1766094203648,0.0332,2818.9,2817.9,9.5182]
[1766094204063,0.0332,2818.9,2818.0,0.46438023]
[1766094204275,0.0332,2818.9,2817.6,9.5202]
[1766094204490,0.573,2819.0,2817.5,0.002]
[1766094204491,0.46438023,2818.7,2817.5,0.002]
[1766094204648,0.0332,2818.5,2817.5,0.002]
[1766094205350,0.573,2818.4,2817.5,0.002]
[1766094205553,3.54752238,2818.9,2817.5,0.002]
[1766094205554,0.573,2818.5,2817.6,9.5182]
[1766094205763,0.573,2818.5,2817.7,0.95202]
[1766094206168,0.6062,2818.5,2817.5,0.002]
[1766094206368,3.5481124,2818.4,2817.6,0.46438023]
[1766094207160,0.6062,2818.5,2817.6,9.5182]
[1766094207161,0.0332,2818.5,2817.6,9.5182]
[1766094207361,0.573,2818.4,2817.6,9.5182]
[1766094208384,0.573,2818.4,2817.5,0.002]
[1766094208385,0.6062,2818.4,2817.5,0.002]
[1766094208591,0.44861902,2818.3,2817.5,0.002]
[1766094209458,0.573,2818.2,2817.5,0.002]
[1766094211196,0.573,2818.2,2817.7,9.5182]
[1766094211564,0.573,2818.3,2817.7,9.5182]
[1766094216313,0.573,2818.3,2817.8,0.46438023]
[1766094216513,0.573,2818.3,2817.8,9.5182]
[1766094216713,0.573,2818.3,2817.9,0.95182]
[1766094217318,0.0332,2818.7,2817.9,0.95182]
[1766094217617,0.573,2818.6,2817.8,9.5182]
[1766094218422,0.0332,2818.7,2817.6,0.002]
[1766094218635,3.54685394,2819.4,2817.8,9.5182]
[1766094218815,3.54685394,2819.4,2817.6,0.002]
[1766094218816,0.0332,2819.2,2817.6,0.002]
[1766094218994,0.573,2819.1,2818.1,7.1266]
[1766094219194,0.0332,2819.2,2817.8,0.46438023]
[1766094219394,0.0332,2818.9,2818.0,0.46438023]
[1766094219609,0.0332,2818.9,2817.9,9.5182]
[1766094219918,0.0332,2818.8,2818.0,0.95182]
[1766094220689,0.0332,2818.8,2818.0,10.47002]
[1766094220909,0.573,2818.9,2818.0,0.95182]
[1766094221109,0.0332,2818.8,2818.1,0.46438023]
[1766094221292,0.0332,2818.8,2818.0,7.1266]
[1766094221293,3.58081256,2818.8,2818.0,7.1266]
[1766094221493,7.12842512,2818.8,2817.8,2.85598023]
[1766094221716,0.0332,2818.7,2817.8,2.85598023]
[1766094222099,0.0332,2818.7,2817.8,9.98258023]
[1766094222395,0.0332,2818.7,2817.9,1.51993825]
[1766094223406,3.58099052,2818.7,2817.9,1.51993825]
[1766094224309,0.0332,2818.6,2817.8,0.46438023]
[1766094224504,0.573,2818.5,2817.8,0.46438023]
[1766094225333,0.573,2818.5,2817.8,9.3769]
[1766094225818,0.573,2818.5,2817.9,7.0076]
[1766094226404,0.573,2818.5,2817.8,7.0076]
[1766094226608,0.573,2818.5,2817.7,0.46438023]
[1766094226609,0.573,2818.6,2818.1,9.3769]
[1766094228260,0.0332,2818.9,2818.1,9.3769]
[1766094228406,0.573,2819.0,2818.0,9.3769]
[1766094228604,0.573,2819.0,2818.2,9.3769]
[1766094228809,0.573,2819.0,2818.1,0.98412802]
[1766094229015,0.573,2819.0,2818.1,0.573]
[1766094229217,0.573,2819.0,2818.2,9.3769]
[1766094229443,0.573,2819.0,2818.1,0.573]
[1766094229841,0.573,2819.0,2818.4,2.3693]
[1766094230043,0.573,2819.0,2818.1,1.03738023]
[1766094230215,0.573,2819.0,2818.5,9.3769]
[1766094230564,0.573,2819.1,2818.2,0.45859369]
[1766094230837,0.0342,2819.5,2818.5,7.0076]
[1766094231010,0.573,2819.4,2818.8,9.3769]
[1766094231207,0.001,2819.5,2818.9,0.46438023]
[1766094231749,0.001,2819.5,2819.0,7.0076]
[1766094231911,0.001,2819.5,2818.7,0.46438023]
[1766094232111,0.001,2819.5,2818.8,0.40121791]
[1766094232311,0.001,2819.8,2819.3,7.0076]
[1766094232517,0.001,2819.8,2818.9,0.573]
[1766094232518,0.001,2819.8,2819.4,9.3769]
[1766094233243,0.0342,2819.7,2817.8,2.3693]
[1766094233421,0.0342,2819.7,2818.1,7.0076]
[1766094233624,0.0342,2819.4,2818.4,9.3769]
[1766094233859,0.0342,2819.4,2818.4,2.3693]
[1766094234062,0.0342,2819.4,2818.5,9.3769]
[1766094234223,0.0342,2819.4,2818.3,0.46438023]
[1766094234422,0.71279298,2819.6,2818.4,0.405504]
[1766094234624,0.573,2819.5,2818.7,7.0076]
[1766094234824,1.05965988,2819.5,2818.7,9.3769]
[1766094235825,4.1197466,2819.5,2818.7,9.3769]
[1766094236027,0.573,2819.5,2818.7,9.3769]
[1766094236367,4.15393416,2819.5,2818.4,9.782404]
[1766094236530,0.6072,2819.5,2818.6,0.46438023]
[1766094236725,0.6072,2819.5,2818.6,7.0076]
[1766094236925,0.6072,2819.5,2818.7,0.89062571]
[1766094237559,4.15398514,2819.5,2818.7,0.89062571]
[1766094238373,0.6072,2819.5,2818.7,0.89062571]
[1766094238879,0.001,2819.8,2818.9,0.46438023]
[1766094239048,0.001,2819.8,2818.8,0.46438023]
[1766094239377,0.001,2819.8,2819.0,9.3769]
[1766094239676,0.001,2819.5,2819.0,9.3769]
[1766094239863,0.001,2819.5,2818.9,0.4585095]
[1766094240064,0.001,2819.5,2819.0,7.0076]
[1766094240264,0.001,2819.5,2819.1,9.3769]
[1766094240468,0.001,2819.5,2819.1,10.36044095]
[1766094240974,0.001,2819.5,2819.2,9.3769]
[1766094241387,0.001,2819.5,2819.1,0.98354095]
[1766094241388,0.573,2819.7,2819.1,0.98354095]
[1766094241542,0.573,2819.7,2819.3,9.5488]
[1766094241972,0.573,2819.7,2818.9,0.92288973]
[1766094242274,0.573,2819.7,2819.1,9.5488]
[1766094242473,0.0352,2819.6,2818.5,7.1013]
[1766094242647,0.0352,2819.6,2818.6,0.46438023]
[1766094242847,0.0352,2819.4,2818.6,0.46438023]
[1766094244872,0.0352,2819.4,2818.3,0.46438023]
[1766094245065,0.0352,2819.4,2818.3,9.5488]
[1766094245263,0.77011738,2819.5,2818.3,9.5488]
[1766094245454,4.15473708,2819.7,2818.6,0.46438023]
[1766094245659,4.15473708,2819.7,2818.7,9.5488]
[1766094245981,4.15473708,2819.7,2818.6,0.46438023]
[1766094246166,7.70127416,2819.7,2818.3,0.46438023]
[1766094246361,0.77022742,2819.6,2818.6,0.46438023]
[1766094246567,0.80542742,2819.6,2818.6,10.01318023]
[1766094247281,0.77022742,2819.6,2818.6,10.01318023]
[1766094247489,0.0352,2819.5,2818.6,10.01318023]
[1766094248856,0.0352,2819.5,2818.7,7.1013]
[1766094249057,0.43520959,2819.4,2818.7,9.5488]
[1766094250784,0.43520959,2819.4,2818.3,0.46438023]
[1766094250985,0.0352,2819.5,2818.3,0.46438023]
[1766094251186,0.0352,2819.5,2818.4,2.4475]
[1766094251391,0.77022742,2819.6,2818.7,0.46438023]
[1766094251613,0.77022742,2819.6,2818.5,0.573]
[1766094251890,0.001,2819.8,2818.5,0.573]
[1766094251891,0.001,2820.9,2819.1,0.405504]
[1766094252096,0.001,2820.9,2818.7,10.64314815]
[1766094252097,0.573,2820.7,2819.8,2.4475]
[1766094252258,4.11822386,2820.7,2819.9,9.5488]
[1766094252459,0.0362,2820.6,2819.4,0.46438023]
[1766094252661,0.0362,2820.4,2819.4,1.52289825]
[1766094252862,0.0362,2820.4,2819.5,0.46438023]
[1766094253460,0.0362,2820.4,2819.4,1.05851802]
[1766094253656,0.0362,2820.4,2818.8,0.405504]
[1766094253657,0.0362,2820.4,2819.0,2.5712]
[1766094253862,0.0362,2820.4,2819.1,0.46438023]
[1766094254062,0.0362,2820.4,2819.1,7.5143]
[1766094254375,0.0362,2820.4,2817.2,3.63886977]
[1766094254376,0.0362,2819.9,2818.7,2.5712]
[1766094254562,0.46438023,2820.0,2818.7,2.5712]
[1766094254563,0.0362,2819.7,2818.7,3.57975]
[1766094254763,0.0362,2819.7,2818.7,11.09405]
[1766094255370,0.0362,2819.7,2818.8,7.5143]
[1766094255773,0.0362,2819.7,2818.9,10.0855]
[1766094256376,4.11840042,2819.8,2818.9,10.0855]
[1766094256693,0.41184004,2819.7,2818.9,10.0855]
[1766094256907,3.54603105,2820.1,2818.8,7.5143]
[1766094257107,0.572,2820.0,2819.2,10.0855]
[1766094257711,0.6082,2820.0,2818.7,2.04493023]
[1766094258038,1.37822621,2820.0,2819.0,10.0855]
[1766094258303,1.37822621,2820.0,2818.7,0.572]
[1766094258492,4.92440409,2820.0,2819.0,10.0855]
[1766094258912,4.92440409,2820.0,2819.1,10.0855]
[1766094259410,1.37822621,2820.0,2818.9,0.46438023]
[1766094259582,1.34202621,2820.0,2818.9,0.46438023]
[1766094259778,0.572,2820.0,2818.9,10.0855]
[1766094259982,0.572,2820.0,2819.0,0.46438023]
[1766094260180,0.572,2820.0,2819.2,2.5712]
[1766094260510,0.572,2820.0,2819.2,10.0855]
[1766094261613,0.001,2820.4,2819.3,0.977504]
[1766094261926,0.001,2820.4,2818.5,0.002]
[1766094261927,0.0362,2820.3,2819.4,1.3471134]
[1766094262235,0.572,2820.2,2819.3,10.0855]
[1766094262382,0.572,2820.2,2819.3,0.46438023]
[1766094262811,0.572,2820.2,2819.4,10.0855]
[1766094263981,0.572,2820.2,2819.3,2.5712]
[1766094264184,0.001,2820.0,2819.6,7.5143]
[1766094264411,0.001,2820.0,2819.7,10.0855]
[1766094264610,0.572,2820.2,2819.6,0.75143]
[1766094264920,0.572,2820.2,2819.7,10.0855]
[1766094265829,0.001,2820.4,2819.7,10.0855]
[1766094266020,0.573,2820.4,2819.7,10.0855]
[1766094266736,0.573,2820.4,2819.3,0.46438023]
[1766094266737,0.001,2820.4,2819.3,0.46438023]
[1766094267046,0.001,2820.4,2819.5,0.572]
[1766094267232,0.001,2820.4,2819.8,10.0855]
[1766094267815,0.001,2820.4,2819.6,7.5143]
[1766094268021,0.001,2820.4,2819.8,10.0855]
[1766094272320,0.001,2820.4,2819.6,0.46438023]
[1766094272520,0.001,2820.4,2819.9,10.0855]
[1766094272819,0.001,2820.7,2820.1,0.46438023]
[1766094273321,0.001,2820.7,2820.2,10.0855]
[1766094274054,0.001,2820.7,2820.1,0.46438023]
[1766094274219,0.001,2820.7,2819.5,1.03638023]
[1766094274424,0.001,2820.7,2820.0,0.46438023]
[1766094275044,0.001,2820.7,2820.0,1.51936825]
[1766094275624,0.001,2820.7,2820.1,0.46438023]
[1766094276560,0.0382,2820.6,2819.5,10.0855]
[1766094276724,0.0382,2820.4,2819.5,10.0855]
[1766094276923,0.0382,2820.4,2819.6,0.46438023]
[1766094278725,3.58383523,2820.4,2819.6,0.46438023]
[1766094278926,0.80833572,2820.3,2819.6,0.46438023]
[1766094281658,0.80933572,2820.3,2819.6,0.46438023]
[1766094282674,0.77113572,2820.3,2819.4,0.75585913]
[1766094282961,0.77113572,2820.3,2819.1,0.002]
[1766094282962,0.0382,2820.2,2819.1,0.002]
[1766094283263,0.405504,2820.1,2819.1,0.002]
[1766094283562,0.0382,2819.7,2819.1,0.001]
[1766094283865,0.0382,2819.5,2819.1,0.001]
[1766094284038,0.572,2819.4,2819.1,0.001]
[1766094285141,0.572,2819.5,2819.1,0.001]
[1766094285335,0.6102,2819.5,2819.1,0.001]
[1766094286268,1.02587422,2819.5,2819.1,0.001]
[1766094287971,0.6102,2819.5,2819.1,0.001]
[1766094288266,0.572,2819.5,2819.1,0.001]
[1766094289969,0.50258023,2820.1,2819.1,0.001]
[1766094290265,0.0382,2819.9,2819.1,0.001]
[1766094291842,0.0382,2819.8,2819.1,0.001]
[1766094292045,0.39665421,2819.7,2819.1,0.001]
[1766094292269,0.572,2819.6,2819.1,0.001]
[1766094294677,0.0352,2819.5,2818.5,0.002]
[1766094294845,0.572,2819.4,2818.7,2.5162]
[1766094295171,0.0352,2819.3,2818.5,0.002]
[1766094296143,3.5463508,2819.8,2818.5,0.002]
[1766094296368,1.07158023,2819.7,2818.7,9.7685]
[1766094296576,0.0352,2819.6,2818.7,9.7685]
[1766094296749,0.0352,2819.6,2819.0,0.002]
[1766094298574,1.23415343,2820.1,2819.0,9.7705]
[1766094298781,0.0352,2819.8,2819.0,9.7705]
[1766094299088,0.001,2820.3,2819.7,9.7685]
[1766094299382,0.001,2820.7,2820.1,16.31859332]
[1766094300105,0.001,2820.7,2820.1,6.55009332]
[1766094300251,0.001,2820.7,2819.6,0.572]
[1766094300252,0.0362,2820.7,2819.9,0.46438023]
[1766094300609,0.0362,2820.7,2819.9,11.91117759]
[1766094301376,0.0352,2820.5,2819.1,0.405504]
[1766094301582,0.0352,2820.5,2819.2,0.572]
[1766094301894,0.0352,2820.5,2819.4,0.46438023]
[1766094302078,0.0352,2820.5,2819.4,10.19378023]